Cogmind - Beta 14 X2 @@@ ROGUE MODE // 2024.08.03 @ 22:03:04 Player: f3-rnm Result: Destroyed by G-67 Veteran with Field Laser Performance ------------- Evolutions (7) 3500 Regions Visited (7) 1400 Robots Destroyed (55) 275 Value Destroyed (1982) 1982 Prototype IDs (18) 360 Alien Tech Used (0) 0 Bonus (2288) 2288 TOTAL SCORE: 9805 Bonus ------- High Alert Combat Kills 18 Follower Combat Kills 105 Delivered SUBCON Basin 2000 Registered with UFD 300 Friendly Fire -135 Cogmind --------- Core Integrity 0/1300 Matter 115/300 Energy 99/100 System Corruption 3% Temperature Cool (12) Movement Core (50) Location -3/Research Parts ------- > --- POWER (2) -------- (None) > --- PROPULSION (6) --- (None) > --- UTILITY (9) ------ (None) > --- WEAPON (4) ------- (None) > --- INVENTORY (5) ---- Huge Storage Unit Advanced Transmission Jammer Advanced Thermal Shield Tech Extrapolator Remote Datajack Peak State ------------ > --- POWER ------------ Micro Fission Core Micro Fission Core > --- PROPULSION ------- Medium Treads Advanced Medium Treads Overtuned Huge Scrapsphere > --- UTILITY ---------- Scrap Suit Advanced Power Amplifier Huge Storage Unit Transport Network Coupler Advanced Transmission Jammer Cloaking Device Improved Hardlight Generator Makeshift Hacking Suite > --- WEAPON ----------- Coil Gun Overtuned Coil Gun Linear Accelerator Remote Datajack > --- INVENTORY -------- Surveybot 17 Chip Seismic Detector Microactuators Tech Extrapolator Long-range Tractor Beam [Rating: 98] Favorites ----------- Power Ion Engine Engine Ion Engine Power Core Micro Fission Core Propulsion Light Treads Treads Light Treads Leg Carbon-fiber Leg Wheel Wheel Hover Unit Backup Propulsion III Flight Unit Cesium-ion Thruster Utility Humpback Device Cloaking Device Storage Humpback Processor Targeting Computer Hackware Makeshift Hacking Suite Protection Scrap Shield Weapon Subdweller Laser Energy Gun Subdweller Laser Energy Cannon Subdweller Beam Cannon Ballistic Gun Subdweller Machine Gun Ballistic Cannon Magnetic Acceleration Cannon Launcher Grenade Launcher Special Weapon Remote Datajack Build | -11 -10 -10 -7 -7 -5 -4 -3 ------- Run | Yrd Mat Sub Rec Scr Fac Fac Res Slots Evolved 14 | . . . . . 10 2 2 Power 1 | . . . . . 1 . . Propulsion 4 | . . . . . 2 2 . Utility 7 | . . . . . 6 . 1 Weapon 2 | . . . . . 1 . 1 Parts Attached 86 | 5 5 19 1 12 10 30 4 Power 7 | 1 . 1 . 1 1 3 . Engine 5 | 1 . 1 . 1 1 1 . Core 2 | . . . . . . 2 . Reactor . | . . . . . . . . Propulsion 20 | 2 . 2 . 4 4 7 1 Treads 10 | 2 . 1 . 1 2 4 . Leg 2 | . . . . . 2 . . Wheel 7 | . . 1 . 2 . 3 1 Hover . | . . . . . . . . Flight 1 | . . . . 1 . . . Utility 26 | 1 3 3 . 3 . 14 2 Device 9 | . . . . . . 8 1 Storage 6 | 1 2 1 . 1 . . 1 Processor 4 | . 1 . . . . 3 . Hackware 4 | . . . . 1 . 3 . Protection 3 | . . 2 . 1 . . . Artifact . | . . . . . . . . Weapon 33 | 1 2 13 1 4 5 6 1 Energy Gun 5 | 1 1 2 . . . 1 . Energy Cannon 2 | . . 2 . . . . . Ballistic Gun 17 | . . 8 1 3 . 4 1 Ballistic Cannon 3 | . . . . 1 2 . . Launcher 4 | . 1 1 . . 2 . . Special Weapon 2 | . . . . . 1 1 . Impact Weapon . | . . . . . . . . Slashing Weapon . | . . . . . . . . Piercing Weapon . | . . . . . . . . Special Melee Weapon . | . . . . . . . . Unidentified Prototypes 1 | . . . . . . 1 . Parts Lost 26 | . . 3 . . 12 3 8 Power 4 | . . 1 . . 2 . 1 Propulsion 13 | . . 2 . . 6 2 3 Utility 4 | . . . . . 1 1 2 Weapon 5 | . . . . . 3 . 2 Highest Loss Streak 6 | . . 2 . . 5 2 6 To Critical Strikes 1 | . . . . . . . 1 Average Slot Usage (%) 80 | . 94 85 85 73 28 60 66 Engine 11 | . 14 13 14 11 2 4 . Treads 19 | . 28 27 14 12 5 12 7 Wheel 6 | . . . 14 12 1 5 3 Device 1 | . . . . . . 14 19 Storage 10 | . 14 8 14 12 4 . 3 Processor 1 | . 9 1 . . . 3 3 Hackware 1 | . . . . 2 4 8 3 Protection 2 | . . 6 . . . . . Energy Gun 10 | . 25 10 14 8 . . . Energy Cannon 3 | . . 8 . . . . . Ballistic Gun 8 | . . 8 9 10 1 5 6 Launcher 1 | . 1 . 4 . . . . Naked Turns 499 | . . . . 370 27 43 59 Heaviest Build 217 | 11 87 217 213 213 66 40 132 Greatest Support 86 | 40 40 40 10 20 35 86 20 Greatest Overweight (x) 21 | . 2 21 21 21 15 3 6 Average Overweight (x) 5 | . . 1 21 6 3 . 4 Largest Inventory Capacity 35 | 8 25 35 35 35 20 5 25 Average Capacity 23 | 7 8 19 35 27 18 5 21 Most Carried 33 | 2 10 33 33 27 19 5 14 Average Carried 18 | 1 7 13 32 20 15 4 7 Final Capacity 35 | 8 10 35 35 20 5 5 5 Final Carried 32 | 2 10 32 19 20 5 5 5 Class Distribution -------------------- 53% | Hauler-Mutant 30% | Mutant 9% | Subdweller-Mutant Dominant Class ---------------- Mutant | -10/Materials Hauler-Mutant | -10/Subcaves Hauler-Mutant | -7/Recycling Hauler-Mutant | -7/Scraptown Mutant | -5/Factory Hacker-Mutant | -4/Factory Scavenger-Tank | -3/Research Resources | -11 -10 -10 -7 -7 -5 -4 -3 ----------- Run | Yrd Mat Sub Rec Scr Fac Fac Res Matter Collected 1971 | 250 40 676 26 20 293 537 129 Remotely . | . . . . . . . . Salvage Created 1753 | . 262 561 115 . 153 513 149 Parts 116 | . 24 41 5 . 6 30 10 Haulers Intercepted 1 | . . . . . . 1 . Recyclers Shooed 3 | . 1 . . . 1 1 . Parts Field Recycled . | . . . . . . . . Retrieved Matter . | . . . . . . . . Parts Self-Destructed 24 | . . 24 . . . . . Prevented . | . . . . . . . . Kills | -11 -10 -10 -7 -7 -5 -4 -3 ------- Run | Yrd Mat Sub Rec Scr Fac Fac Res Combat Hostiles Destroyed 42 | . 12 12 2 . 6 7 3 Melee 1 | . . . . . . . 1 Guns 30 | . 10 8 2 . 1 7 2 Cannons 7 | . . 4 . . 3 . . AOE 4 | . 2 . . . 2 . . Classes Destroyed 14 | . 4 4 . . 1 5 . Worker 3 | . 1 . . . . 2 . Builder 2 | . . . . . 1 1 . Tunneler 2 | . 1 . . . . 1 . Hauler 1 | . . . . . . 1 . Operator 2 | . . . . . . 2 . Turret 2 | . . 2 . . . . . Swarmer 15 | . 8 1 . . 2 4 . Grunt 11 | . 4 3 . . 4 . . Sentry 4 | . . 1 2 . . . 1 Hunter 1 | . . . . . . 1 . Programmer 4 | . . . . . . 2 2 Artisan 1 | . . 1 . . . . . Subdweller 7 | . . 7 . . . . . Scrapoid 1 | . . . . . . 1 . Best Kill Streak 5 | . 4 2 2 . 3 5 2 Combat Bots Only 4 | . 4 2 2 . 3 4 2 Max Kills in Single Turn 2 | . 1 1 1 . 1 2 1 Gunslinging . | . . . . . . . . Exploded 1 | . 1 . . . 1 . . Melee 1 | . . . . . . . 1 Uniques/NPCs Destroyed . | . . . . . . . . Combat | -11 -10 -10 -7 -7 -5 -4 -3 -------- Run | Yrd Mat Sub Rec Scr Fac Fac Res Hostile Shots Fired 641 | . 58 86 63 . 111 110 213 Missed 208 | . 24 34 22 . 30 35 63 Damage Taken 6249 | . 305 756 303 . 1553 854 2478 Core 2357 | . 77 75 22 . 786 92 1305 Absorbed by Shields 522 | . . . . . . 168 354 Ignored by Resistances 3 | . . 3 . . . . . Regen/Repaired (Parts) 14 | . . . . . . 14 . Core Remaining (%) 60 | 100 . . . 30 21 92 . Volleys Fired 219 | . 44 73 8 . 19 51 24 Largest 3 | . 2 2 2 . 2 3 2 Hottest 140 | . 80 140 90 . 83 95 98 Shots Fired 360 | . 77 121 16 . 23 89 34 Gun 295 | . 72 90 16 . 4 89 24 Cannon 40 | . . 22 . . 11 . 7 Launcher 21 | . 5 9 . . 7 . . Special 4 | . . . . . 1 . 3 Kinetic 204 | . . 54 8 . 22 89 31 Thermal 138 | . 72 58 8 . . . . Explosive 14 | . 5 9 . . . . . Electromagnetic . | . . . . . . . . Robot Hit Streak 16 | . 6 12 16 . 10 13 8 Robot Miss Streak 5 | . 4 4 2 . 4 5 4 Penetration Max 1 | . . . . . . 1 . Secondary Targets 3 | . 1 1 . . . 1 . Max Gunslinging Chain 1 | . 1 1 . . . 1 . Shots Hit Robots 187 | . 38 51 13 . 17 47 21 Core Hits 95 | . 19 27 5 . 18 20 6 Critical Kills 4 | . . . . . . 4 . Critical Parts Destroyed 5 | . . . . . . 4 1 Critical Strikes 10 | . . . . . . 8 2 Destroy 9 | . . . . . . 8 1 Blast 1 | . . . . . . . 1 Melee Attacks . | . . . . . . . . Impact . | . . . . . . . . Slashing . | . . . . . . . . Piercing . | . . . . . . . . Sneak Attacks . | . . . . . . . . Combat Hostiles . | . . . . . . . . Follow-up Attacks . | . . . . . . . . Damage Inflicted 5178 | . 583 978 276 . 1111 1577 653 Guns 3009 | . 426 637 276 . 72 1183 415 Cannons 588 | . . 144 . . 243 . 201 Explosions 1525 | . 157 197 . . 793 378 . Melee . | . . . . . . . . Ramming 56 | . . . . . 3 16 37 Kinetic 3452 | . . 396 149 . 1108 1183 616 Thermal 954 | . 442 385 127 . . . . Explosive 716 | . 141 197 . . . 378 . Electromagnetic . | . . . . . . . . Impact . | . . . . . . . . Slashing . | . . . . . . . . Piercing . | . . . . . . . . Highest Corruption 5 | . . . . . 5 1 3 Average Corruption 2 | . . . . . 3 1 2 Corruption Purged . | . . . . . . . . Corruption Blocked . | . . . . . . . . Effects 2 | . . . . . . 1 1 Matter Fused 1 | . . . . . . . 1 Weapon Failures 1 | . . . . . . 1 . Overload Shots . | . . . . . . . . Overflow Damage 144 | . . 2 . . 18 124 . Projectiles . | . . . . . . . . Explosions 144 | . . 2 . . 18 124 . Melee . | . . . . . . . . Knockbacks 5 | . . . . . 5 . . Impact . | . . . . . . . . Kinetic 5 | . . . . . 5 . . Secondary . | . . . . . . . . Self-Inflicted Damage 29 | . . . . . 9 8 12 Shots 1 | . . . . . 1 . . Rammed 10 | . . . . . 3 1 6 Targets Rammed 11 | . . . . . 3 1 7 Kicked . | . . . . . . . . Crushed 1 | . . . . . . . 1 Highest Temperature 276 | . 162 36 276 . 23 26 166 Average Temperature 53 | . 54 13 128 . 9 10 46 Received Heat Transfer 1036 | . 60 306 78 . 351 . 241 Siege Activations . | . . . . . . . . Robots Corrupted . | . . . . . . . . Combat Hostiles . | . . . . . . . . Parts Fried . | . . . . . . . . Impact Corruptions . | . . . . . . . . Robots Melted . | . . . . . . . . Combat Hostiles . | . . . . . . . . Parts Melted 3 | . 3 . . . . . . Heat Transferred 1785 | . 1075 560 150 . . . . Parts Sabotaged . | . . . . . . . . Parts Stolen . | . . . . . . . . Parts Stripped . | . . . . . . . . Power Chain Reactions . | . . . . . . . . Alert | -11 -10 -10 -7 -7 -5 -4 -3 ------- Run | Yrd Mat Sub Rec Scr Fac Fac Res Peak Influence 468 | . 205 . 148 . 142 468 346 Initial 240 | . . . 58 . . 59 240 Average 60 | . 68 . 23 . 75 109 242 Maximum Alert Level 2 | . 1 . . . . 2 1 Low Security (%) 91 | 100 95 . 100 . 100 90 12 Level 1 8 | . 4 . . . . 4 87 Level 2 . | . . . . . . 4 . Level 3 . | . . . . . . . . Level 4 . | . . . . . . . . Level 5 . | . . . . . . . . High Security . | . . . . . . . . Max Security . | . . . . . . . . Squads Dispatched 9 | . 3 . . . 1 4 1 Investigation 4 | . 2 . . . . 1 1 Extermination 2 | . . . . . 1 1 . Reinforcement 3 | . 1 . . . . 2 . Assault . | . . . . . . . . Garrison . | . . . . . . . . Intercept . | . . . . . . . . Searches Triggered . | . . . . . . . . Construction Impeded 1 | . . . . . . 1 . Haulers Reinforced . | . . . . . . . . Active Scanning Responses . | . . . . . . . . Cargo Convoy Interrupts . | . . . . . . . . Stealth | -11 -10 -10 -7 -7 -5 -4 -3 --------- Run | Yrd Mat Sub Rec Scr Fac Fac Res Distress Signals 2 | . 2 . . . . . . Communications Jammed . | . . . . . . . . Distress Signals . | . . . . . . . . Times Spotted 73 | . 21 14 2 . 8 11 17 Peak Tracking Total 9 | . 4 2 2 . 3 4 9 Tactical Retreats 5 | . 1 3 . . . . 1 Traps | -11 -10 -10 -7 -7 -5 -4 -3 ------- Run | Yrd Mat Sub Rec Scr Fac Fac Res Traps Triggered 10 | . 2 3 . . 1 2 2 Indirectly . | . . . . . . . . Trap Hack Attempts . | . . . . . . . . Triggered . | . . . . . . . . Disarmed . | . . . . . . . . Reprogrammed . | . . . . . . . . Reused . | . . . . . . . . Traps Extracted . | . . . . . . . . Installed . | . . . . . . . . Triggered . | . . . . . . . . Machines | -11 -10 -10 -7 -7 -5 -4 -3 ---------- Run | Yrd Mat Sub Rec Scr Fac Fac Res Machines Disabled 29 | . 3 6 . . 2 16 2 Max in Single Turn 3 | . 2 2 . . 1 3 1 Machines Repaired . | . . . . . . . . Machines Dismantled . | . . . . . . . . Machines Sabotaged . | . . . . . . . . Overloaded Fab Kills . | . . . . . . . . Hacking | -11 -10 -10 -7 -7 -5 -4 -3 --------- Run | Yrd Mat Sub Rec Scr Fac Fac Res Machines Accessed 21 | . . 4 11 3 . 3 . Terminals 5 | . . . 5 . . . . Fabricators 1 | . . . . . . 1 . Repair Stations 1 | . . . . . . 1 . Recycling Units 6 | . . . 5 . . 1 . Scanalyzers . | . . . . . . . . Garrison Access . | . . . . . . . . Total Hacks 54 | . . 8 18 23 . 5 . Successful 46 | . . 8 12 23 . 3 . Failed 8 | . . . 6 . . 2 . Catastrophic . | . . . . . . . . Database Lockouts . | . . . . . . . . Manual 17 | . . . 14 . . 3 . Terminals 11 | . . . 11 . . . . Fabricators 2 | . . . . . . 2 . Repair Stations 1 | . . . . . . 1 . Recycling Units 8 | . . . 6 . . 2 . Scanalyzers . | . . . . . . . . Garrison Access . | . . . . . . . . Terminal Hacks 33 | . . 8 2 23 . . . Record 21 | . . 5 1 15 . . . Robot Analysis 7 | . . . . 7 . . . Open Door 1 | . . 1 . . . . . Alert Level 1 | . . . 1 . . . . Derelict Proto ID Bank 2 | . . 1 . 1 . . . Release Object 1 | . . 1 . . . . . Fabricator Hacks 1 | . . . . . . 1 . Build 1 | . . . . . . 1 . Repair Station Hacks 1 | . . . . . . 1 . Refit 1 | . . . . . . 1 . Recycling Unit Hacks . | . . . . . . . . Scanalyzer . | . . . . . . . . Garrison Access Hacks . | . . . . . . . . Unauthorized Hacks 11 | . . . 10 . . 1 . Terminals 5 | . . . 5 . . . . Skim 5 | . . . 5 . . . . Fabricators . | . . . . . . . . Repair Stations 1 | . . . . . . 1 . Recycling Units 5 | . . . 5 . . . . Tunnel 5 | . . . 5 . . . . Scrapoids 1 | . . . . . . 1 . Scanalyzers . | . . . . . . . . Garrison Access . | . . . . . . . . Data Cores Recovered . | . . . . . . . . Used . | . . . . . . . . Hacking Detections 4 | . . . 2 . . 2 . Full Trace Events . | . . . . . . . . Feedback Events . | . . . . . . . . Feedback Blocked . | . . . . . . . . Robot Schematics Acquired . | . . . . . . . . Robots Built . | . . . . . . . . Authchips . | . . . . . . . . Time . | . . . . . . . . Total Robot Build Rating . | . . . . . . . . Part Schematics Acquired . | . . . . . . . . Parts Built 2 | . . . . . . 2 . Authchips . | . . . . . . . . Time 58 | . . . . . . 58 . Total Part Build Rating 14 | . . . . . . 14 . Parts Repaired . | . . . . . . . . Time . | . . . . . . . . Parts Recycled . | . . . . . . . . Recycled Matter . | . . . . . . . . Retrieved Matter . | . . . . . . . . Retrieved Components . | . . . . . . . . Parts Scanalyzed . | . . . . . . . . Part Schematics Acquired . | . . . . . . . . Parts Damaged . | . . . . . . . . Bothacking | -11 -10 -10 -7 -7 -5 -4 -3 ------------ Run | Yrd Mat Sub Rec Scr Fac Fac Res Used RIF Installer . | . . . . . . . . Robots Hacked 1 | . . . . . 1 . . Non-combat 1 | . . . . . 1 . . Combat . | . . . . . . . . Robot Hacks Applied 1 | . . . . . 1 . . find_recycling 1 | . . . . . 1 . . Relay Couplers Released . | . . . . . . . . Fabnet Peak Effective % . | . . . . . . . . Robots Rewired . | . . . . . . . . Allies Hacked . | . . . . . . . . Hacks Repelled . | . . . . . . . . Allies | -11 -10 -10 -7 -7 -5 -4 -3 -------- Run | Yrd Mat Sub Rec Scr Fac Fac Res Total Allies 5 | . . . . . . 5 . Largest Group 5 | . . . . . . 5 . Highest-Rated Group 238 | . . . . . . 238 . Highest-Rated Ally 50 | . . . . . . 50 . Total Orders . | . . . . . . . . Ally Attacks 32 | . . . . . . 32 . Total Damage 477 | . . . . . . 477 . Kills 2 | . . . . . . 2 . Allies Corrupted . | . . . . . . . . Allies Melted . | . . . . . . . . Intel | -11 -10 -10 -7 -7 -5 -4 -3 ------- Run | Yrd Mat Sub Rec Scr Fac Fac Res Robot Analysis Total 7 | . . . . 7 . . . Derelict Logs Recovered 7 | . . 3 . 4 . . . Drone Launches . | . . . . . . . . Drone Recoveries . | . . . . . . . . Exploration | -11 -10 -10 -7 -7 -5 -4 -3 ------------- Run | Yrd Mat Sub Rec Scr Fac Fac Res Turns Passed 16322 | 87 1071 6063 3355 4229 364 694 459 Spaces Moved 7561 | 51 577 2397 842 2518 151 662 363 Core 1315 | 3 . . . 740 60 403 109 Treads 3004 | 48 577 2371 . . . 8 . Legs 40 | . . . . . 40 . . Wheels 2812 | . . 26 842 1388 51 251 254 Hover . | . . . . . . . . Flight 390 | . . . . 390 . . . Fastest Speed 35 | 50 160 160 395 35 50 50 50 Average Speed 203 | 153 160 240 395 165 186 64 104 Slowest Speed 800 | 160 320 560 395 395 800 200 130 Overloaded Moves . | . . . . . . . . Propulsion Burnouts . | . . . . . . . . Robots Hopped . | . . . . . . . . Cave-ins Triggered . | . . . . . . . . Exploration Rate (%) 50 | 4 91 95 97 81 5 17 13 Regions Visited 7 Branch Regions 3 Pre-discovered Areas 10 | . . 1 6 3 . . . Known Exits Taken 4 | . . 1 1 1 1 . . Unknown Exits Taken 3 | 1 1 . . . . 1 . Scrap Searched 21 | . . 18 . 3 . . . Spaces Dug 8 | . . 8 . . . . . Terrain Destroyed 157 | . 55 19 . . 40 34 9 Melee . | . . . . . . . . Projectile 32 | . . 10 . . 1 12 9 AOE 122 | . 55 9 . . 39 19 . Terrain Rammed . | . . . . . . . . Walls Destroyed . | . . . . . . . . Machines Disabled . | . . . . . . . . Actions | -11 -10 -10 -7 -7 -5 -4 -3 --------- Run | Yrd Mat Sub Rec Scr Fac Fac Res Total 8160 | 57 644 2567 858 2574 196 847 417 Wait 98 | . 5 34 3 1 1 49 5 Move 7554 | 50 576 2396 841 2517 150 661 363 Hop . | . . . . . . . . Pick Up 92 | 2 11 23 3 35 5 5 8 Fast Attach 42 | 5 2 4 . 5 1 23 2 Attach 30 | . . 7 . 7 9 5 2 Detach 9 | . . . . . 4 1 4 Swap 14 | . 3 8 1 . . 2 . Drop 56 | . 3 17 2 9 4 19 2 Fire 219 | . 44 73 8 . 19 51 24 Melee . | . . . . . . . . Ram 8 | . . . . . 3 1 4 Kick . | . . . . . . . . Crush 3 | . . . . . . . 3 Escape Stasis 30 | . . . . . . 30 . Rewire . | . . . . . . . . Trap . | . . . . . . . . Miscellaneous 5 | . . 5 . . . . . Route ------- -11/Scrapyard -10/Materials (discovered 6 exits: [*Mat x3] / [*Min x2] / *Sub) -10/Subcaves (discovered 3 exits: [*Mat x2] / *Rec) -7/Recycling (discovered 2 exits: *Fac / *Scr) -7/Scraptown (discovered 2 exits: *Fac x2) -5/Factory (discovered 5 exits: *Fac x4 / Upp) -4/Factory (discovered 3 exits: [*Res] / [*Upp x2]) -3/Research (discovered 1 exit: Arm) History --------- Turn | Location | Event 49 | -11/Scrapyard | Discovered new exit (range 15) 88 | -11/Scrapyard | Entered Materials 145 | -10/Materials | Discovered new exit (range 13) 309 | -10/Materials | Build established: Mutant 407 | -10/Materials | Discovered new exit (range 8) 574 | -10/Materials | Discovered new exit (range 13) 645 | -10/Materials | Discovered new exit (range 7) 766 | -10/Materials | Discovered new exit (range 9) 1146 | -10/Materials | Discovered new exit (range 8) 1159 | -10/Materials | Entered Subcaves 1368 | -10/Subcaves | Visited Clippyterm 1372 | -10/Subcaves | Identified exit to Recycling 1538 | -10/Subcaves | Disturbed a concealed Subdweller 1813 | -10/Subcaves | Discovered new exit (range 13) 1882 | -10/Subcaves | Learned Materials stockpile data 2056 | -10/Subcaves | Learned 4 Materials zone layouts 2153 | -10/Subcaves | Discovered new exit (range 14) 2292 | -10/Subcaves | Shifting Twisted Machinery released Sub. Power Source 2294 | -10/Subcaves | Shifting Twisted Machinery released Mak. Hacking Suite 2567 | -10/Subcaves | Shifting Twisted Machinery released Sub. Beam Cannon 2643 | -10/Subcaves | Visited 4L-MR0's lab 3336 | -10/Subcaves | Build established: Subdweller-Mutant 3431 | -10/Subcaves | Learned location of Zion (-6) 3431 | -10/Subcaves | Met a Zionite searching for "candidates" 3444 | -10/Subcaves | Shifting Twisted Machinery released Mak. Light Armor Plating 3823 | -10/Subcaves | Disturbed a concealed Subdweller 4545 | -10/Subcaves | Found Tower Shield 4744 | -10/Subcaves | Build established: Hauler-Mutant 5557 | -10/Subcaves | Found SUBCON Basin 7100 | -10/Subcaves | Core integrity fell below 50% 7222 | -10/Subcaves | Entered Recycling 7223 | -7/Recycling | Met a Zionite searching for Scraptown 7223 | -7/Recycling | Joined Warlord attack on 0b10 via Recycling 8611 | -7/Recycling | Discovered new exit (range 16) 9927 | -7/Recycling | Learned 4 Proximity Caves zone layouts 10096 | -7/Recycling | Learned 2 Upper Caves zone layouts 10134 | -7/Recycling | Learned Factory stockpile data 10160 | -7/Recycling | Identified exit to Scraptown 10198 | -7/Recycling | Learned Hub_04(d) trap positions 10245 | -7/Recycling | Learned location of Upper Caves (-5) 10329 | -7/Recycling | Scanned before Scraplab entrance 10388 | -7/Recycling | Entered Scraplab 10577 | -7/Recycling | Entered Scraptown 10578 | -7/Scraptown | Identified exit to Factory 11259 | -7/Scraptown | Visited Assassins FH 11362 | -7/Scraptown | Visited Spacefarers 11433 | -7/Scraptown | Visited Awakened 11531 | -7/Scraptown | Visited Junk Repository 11603 | -7/Scraptown | Visited UFD Registry 11603 | -7/Scraptown | Registered with UFD as "Rustbot" 11709 | -7/Scraptown | Visited LU-1G1's Boring Crew 11768 | -7/Scraptown | Visited Science Guys 11907 | -7/Scraptown | Visited Junk Repository 12142 | -7/Scraptown | Delivered Scrap Shield to a Scientist 12280 | -7/Scraptown | Visited Scrapoid Research Area 12339 | -7/Scraptown | Visited Research Penetration Think Tank 12410 | -7/Scraptown | Visited Derelict Rescue Squad 12450 | -7/Scraptown | Visited Chapter 10 12553 | -7/Scraptown | Visited Analyses Database 12620 | -7/Scraptown | Visited Cartography Club 12707 | -7/Scraptown | Found Surveybot 17 Chip 13158 | -7/Scraptown | Released all parts (6) 13461 | -7/Scraptown | Build established: Mutant 13580 | -7/Scraptown | Learned location of Storage (-7) 13580 | -7/Scraptown | Learned 12 Materials zone layouts 13580 | -7/Scraptown | Learned 8 Materials zone layouts 13580 | -7/Scraptown | Learned 16 Materials zone layouts 13580 | -7/Scraptown | Learned 4 Mines zone layouts 13580 | -7/Scraptown | Learned 8 Lower Caves zone layouts 13580 | -7/Scraptown | Learned 16 Lower Caves zone layouts 13580 | -7/Scraptown | Learned Materials emergency access door positions 13580 | -7/Scraptown | Learned location of 2 exits from Factory 13580 | -7/Scraptown | Learned location of 3 exits from Factory 13597 | -7/Scraptown | Found Deep Structural Scanner 13888 | -7/Scraptown | Visited Red Mages 14175 | -7/Scraptown | Scanned Subdweller tech in exchange for log data 14179 | -7/Scraptown | Learned Factory garrison access intel 14181 | -7/Scraptown | Learned Research stockpile data 14806 | -7/Scraptown | Entered Factory 14806 | -5/Factory | Evolved 10 slots: Power x1, Propulsion x2, Utility x6, Weapon x1 14807 | -5/Factory | Identified exit to Factory 14807 | -5/Factory | Identified exit to Upper Caves 14809 | -5/Factory | Loaded intel: 4 garrison access locations 14935 | -5/Factory | Lost 5 parts (1p3n1w) 15020 | -5/Factory | Lost 4 parts (1p2n1w) 15145 | -5/Factory | Core integrity fell below 50% 15170 | -5/Factory | Entered another Factory area 15170 | -4/Factory | Evolved 2 slots: Propulsion x2 15283 | -4/Factory | Fabricated Centrium Wheel? 15313 | -4/Factory | Discovered new exit (range 5) 15368 | -4/Factory | Scrapoid reinforcements arrived 15541 | -4/Factory | Discovered new exit (range 11) 15602 | -4/Factory | Lost 4 allies 15630 | -4/Factory | Found Scrap Suit 15707 | -4/Factory | Found Prototype Processor 15707 | -4/Factory | Identified Exp. Melee Analysis Suite 15822 | -4/Factory | Discovered new exit (range 16) 15864 | -4/Factory | Entered Research 15864 | -3/Research | Evolved 2 slots: Utility x1, Weapon x1 15865 | -3/Research | Identified exit to Armory 16058 | -3/Research | Build established: Scavenger-Tank 16263 | -3/Research | Released all parts (8) 16272 | -3/Research | Core integrity fell below 50% 16292 | -3/Research | Spotted B-86 Titan 16293 | -3/Research | Core integrity fell below 20% 16305 | -3/Research | Lost 6 parts (1p3n1u1w) 16323 | -3/Research | Destroyed by G-67 Veteran with Field Laser Last Messages --------------- 16274_ Ovr. Huge Scrapsphere destroyed. 16274_ Penetrated by Slug. 16274_ Slug penetrates Wall. 16275_ Acquired 20 matter. 16277_ Slug penetrates G-67 Veteran. 16277_ Slug penetrates Wall. 16277_ Penetrated by Slug. 16284_ Slug penetrates Wall. 16295_ Knocked back. 16295_ Slug penetrates Wall. 16303_ Triggered Fusion Bomb Trap. 16303_ An explosion rips through the floor. 16303_ K-01 Serf destroyed. 16304_ R-10 Processor collects Lgt. Ion Engine. 16306_ The unstable cave ceiling collapses. 16308_ U-05 Engineer lays Concrete. 16308_ R-10 Processor collects Wheel. 16310_ U-05 Engineer lays Concrete. 16311_ R-10 Processor collects Sml. Matter Pod. 16312_ U-05 Engineer lays Concrete. Map ----- +----------------------------------------------------+ | ?????????????????????????????????????????????????? | | ?????????????????????????????????????????????????? | | ?????????????????????????????????????????????????? | | ?????????????????????????????????????????????????? | | ?????????????????????????????????????????????????? | | ?????????????????????????????????????????????????? | | ?????????????????????????????????????????????????? | | ?????????????????????????????????????????????????? | | ?????????????????????????????????????????????????? | | ?????????????????????????????????????????????????? | | ?????????????????????????????????????????????????? | | ?????????????????????????????????????????????????? | | ?????????????????????????????????????????????????? | | ?????????????????????????????????????????????????? | | ?????????????????????????????????#???????????????? | | ???????????????????????????????? #???????????????? | | ??????????????????????????????? #???????????????? | | ??????????????????????????????? #???????????????? | | ?????????????????????????????? #???????????????? | | ????????????????????????????? #???????????????? | | ????????????################# #???????????????? | | ??????????? R k #???????????????? | | ??????????? ?????????????????? | | ?????????? g ???????????????????? | | ??????????????gR ?????????????????????? | | ?????????????????????# @##########?????????????? | | ????????????####+##### # #?????????????? | | ????????????# # # #?????????????? | | ????????????# + + """" ??????????????? | | ????????????# # # "F " #?????????????? | | ????????????# """ # # #?????????????? | | ????????????# """ ?# # #?????????????? | | ?????????????? """ ?# # #?????????????? | | ?????????????? ??# # #?????????????? | | ????????????? = ??# # #?????????????? | | ????????????? ???# ##########?????????????? | | ????????????######???# #??????????????????????? | | ????????????????????## #??#???????????????????? | | ????????????????????# #? ???????????????????? | | ????????????????????#T #? ??T"" ?????????????? | | ????????????????????## # ?"" "" #????????????? | | ?????????????????????# # !#????????????? | | ?????????????????????# + #????????????? | | ?????????????????????# # !! +????????????? | | ?????????????????????# #??= ! #????????????? | | ?????????????????????# #???? ! #????????????? | | ?????????????????????# #??????## #????????????? | | ?????????????????????# #??????????????????????? | | ?????????????????????# #??????????????????????? | | ?????????????????????# #??????????????????????? | +----------------------------------------------------+ Best States ------------- Heat Dissipation 46 Energy Generation 31 Energy Capacity 290 Matter Stores 300 Matter Capacity 300 Sight Range 16 Terrain Scan Density 10 Cloak Strength 2 Power Amplification 30 Additional Mass Support 9 Armor Coverage 800 Resistance: KI 10 Resistance: TH 10 Evasion (%) 63 Targeting Accuracy 5 Recoil Reduction 3 Offensive Hacking 23 Defensive Hacking 10 Item Schematics ----------------- None Robot Schematics ------------------ None Fabricated ------------ Centrium Wheel | x2 | -4/Factory | Preloaded Alien Tech Used ----------------- None Achievements -------------- None Challenges ------------ None Game ------ Seed DeliveryWaveReplicator Manual? 0 Play Time 00:59:32 Cumulative 218.6 hours Start 2024.08.03 @ 21:06:10 End 2024.08.03 @ 22:03:04 Sessions 1 Manual Loads 0 Difficulty Rogue Special Mode None Game No. 226 Rogue 190 Adventurer 36 Explorer 0 Win Type - Total 10 Types 3/0/7/0/0/0/0/0/0 Lore% 58 Gallery% 80 Achievement% 71 Wizard Run 0 Options --------- Layout 0 ASCII 0 Keyboard 0 Movement Mouse Keybinds 0 Fullscreen 1 Font 18/SmallcapsGlow Map View 76x50 Zoom Use 0% Tactical HUD 1 Map Filters NONE Filters NONE Steam 1 RUN: 0a31dfd2-2cad-44cf-a15a-d1fee6515bd2